bitfinex/quotes_ETHUSD_20250411
["timestamp","ask_amount","ask_price","bid_price","bid_amount"]
[1744379175765,0.05,1570.4,1570.3,3.0]
[1744379176980,0.05,1570.4,1570.3,9.3682]
[1744379177672,0.05,1570.4,1570.1,6.36869]
[1744379177923,0.05,1570.4,1570.1,12.73758]
[1744379178070,0.05,1570.4,1570.1,6.36869]
[1744379178633,0.05,1570.4,1570.3,13.69948052]
[1744379178931,8.03543,1571.4,1570.9,6.36553]
[1744379179201,0.05,1571.4,1571.3,7.89275]
[1744379179403,0.05,1571.4,1571.3,11.93717912]
[1744379179404,1e-05,1571.4,1571.3,11.93717912]
[1744379179567,1e-05,1571.4,1571.3,15.13605832]
[1744379179770,1e-05,1571.4,1571.3,13.15605196]
[1744379181703,1e-05,1571.4,1571.3,10.89275]
[1744379182477,1e-05,1571.4,1571.3,10.95637738]
[1744379182878,1e-05,1571.4,1571.3,10.89275]
[1744379183301,1e-05,1571.4,1571.3,10.95637759]
[1744379183610,1e-05,1571.4,1571.3,10.95637747]
[1744379184007,1e-05,1571.4,1571.3,3.0]
[1744379184312,1e-05,1571.4,1570.8,8.01261]
[1744379184498,6.36527,1571.1,1570.7,6.36652]
[1744379184703,6.36602,1570.9,1570.5,0.4877758]
[1744379184879,6.3672,1570.6,1570.2,10.69987052]
[1744379185211,6.4137571,1570.8,1570.2,4.33128052]
[1744379185375,0.0475271,1570.8,1570.2,11.17807642]
[1744379185575,6.36756,1570.5,1570.0,6.36938]
[1744379185776,6.36756,1570.5,1570.1,6.36892]
[1744379185977,0.0475271,1570.6,1570.2,6.43213691]
[1744379186239,6.3666,1570.7,1570.3,9.36814]
[1744379186240,6.36685,1570.7,1570.3,9.36814]
[1744379186436,0.0475271,1570.9,1570.4,7.304394]
[1744379186709,7.98657,1571.0,1570.5,9.43091024]
[1744379186916,7.98657,1571.0,1570.5,9.43087024]
[1744379187210,6.36528,1571.1,1570.5,4.33128052]
[1744379187396,6.36655,1570.8,1570.3,5.95838052]
[1744379187600,6.36673,1570.7,1570.4,3.0]
[1744379187799,6.36624,1570.8,1570.4,15.73545]
[1744379188002,0.0475271,1571.1,1570.7,3.0]
[1744379188207,6.366,1570.9,1570.7,3.0]
[1744379188505,6.366,1570.9,1570.6,0.06366103]
[1744379188811,0.0475271,1571.2,1571.0,6.36513]
[1744379188984,8.00932,1571.3,1570.9,4.33128052]
[1744379189185,1.645,1571.3,1570.8,3.0]
[1744379189492,6.36551,1571.0,1570.6,3.0]
[1744379189690,0.0475271,1571.2,1570.8,6.36593]
[1744379189891,0.0475271,1571.2,1570.9,3.0]
[1744379190103,0.0475271,1571.2,1570.8,0.7002456]
[1744379190410,12.728,1571.4,1571.1,3.0]
[1744379190722,6.36389,1571.4,1571.1,3.0]
[1744379191103,1e-05,1571.4,1571.1,3.0]
[1744379191285,1e-05,1571.4,1571.0,3.06364412]
[1744379191615,6.36392,1571.4,1571.2,3.0]
[1744379191811,6.36394,1571.4,1571.2,3.0]
[1744379192019,1e-05,1571.4,1571.2,3.0]
[1744379192213,6.36389,1571.4,1571.2,3.0]
[1744379192417,6.36415,1571.3,1571.0,3.0]
[1744379192584,6.36456,1571.2,1570.8,7.98372]
[1744379192785,6.36456,1571.2,1570.9,3.0]
[1744379192992,6.36456,1571.2,1570.6,4.33128052]
[1744379192993,1.657,1571.1,1570.6,4.33128052]
[1744379193310,6.36619,1570.8,1570.5,6.36734]
[1744379193500,6.36619,1570.8,1570.5,3.0]
[1744379193940,6.36544,1571.0,1570.6,6.43039441]
[1744379194087,1.657,1571.1,1570.8,6.36605]
[1744379194292,9.837,1571.2,1570.9,3.06365348]
[1744379194629,9.837,1571.2,1570.6,4.82047216]
[1744379194630,6.3642,1571.3,1570.7,3.0]
[1744379194831,6.3647,1571.2,1570.9,6.36563]
[1744379195004,6.3647,1571.2,1570.9,3.0]
[1744379195005,6.4122271,1571.2,1570.9,3.0]
[1744379195329,7.91207,1571.4,1570.7,6.36641]
[1744379195330,1.54831,1571.4,1571.1,3.0]
[1744379195487,1e-05,1571.4,1571.2,4.5225]
[1744379195688,1e-05,1571.4,1571.3,0.45225]
[1744379195926,1e-05,1571.4,1571.3,6.8164]
[1744379196130,1e-05,1571.4,1571.3,0.50021383]
[1744379196427,1e-05,1571.4,1571.3,0.04796383]
[1744379196928,6.36376,1571.4,1570.8,6.36603]
[1744379197223,7.98905,1571.3,1570.7,9.837]
[1744379197427,6.36632,1570.8,1570.5,6.36725]
[1744379197630,6.36496,1571.1,1570.4,12.27418052]
[1744379197927,12.73519,1570.5,1570.1,20.53722052]
[1744379198231,6.36722,1570.6,1570.4,3.0]
[1744379198431,6.36739,1570.5,1570.4,3.0]
[1744379198722,6.36722,1570.6,1570.4,3.0]
[1744379198909,12.73454,1570.6,1570.4,3.0]
[1744379199111,6.36722,1570.6,1570.4,3.0]
[1744379199320,6.36722,1570.6,1570.2,6.36842]
[1744379199492,6.36713,1570.6,1570.2,9.10566093]
[1744379199830,6.36713,1570.6,1570.3,9.36816]
[1744379199990,6.36713,1570.6,1570.1,10.70022052]
[1744379199991,6.3678,1570.4,1570.1,10.70022052]
[1744379200191,0.0475271,1570.6,1570.1,10.70022052]
[1744379200192,6.4145771,1570.6,1570.2,0.06367953]
[1744379200434,6.36705,1570.6,1570.3,6.36817]
[1744379200634,0.0475271,1570.5,1570.0,1.579]
[1744379200835,0.0475271,1570.5,1569.3,6.37226]
[1744379200836,6.3678,1570.4,1569.5,53.95528052]
[1744379201049,6.36876,1570.2,1569.8,6.37007]
[1744379201254,6.36841,1570.3,1570.0,3.0]
[1744379201416,1.5509,1570.5,1570.0,6.43280204]
[1744379201417,7.91834,1570.5,1570.0,6.43280204]
[1744379201616,6.4146471,1570.6,1570.2,6.36828]
[1744379201817,6.4141171,1570.7,1570.3,6.36804]
[1744379202028,6.36724,1570.6,1570.2,9.36848]
[1744379202252,6.36724,1570.6,1570.2,9.36847]
[1744379202455,7.94332,1570.8,1570.3,6.43181432]
[1744379202456,7.94334,1570.8,1570.3,6.43181432]
[1744379202753,7.94334,1570.8,1570.2,0.936847]
[1744379202754,1.5771,1570.8,1570.2,0.936847]
[1744379202960,1.5771,1570.8,1570.1,4.33128052]
[1744379202961,7.94366,1570.8,1570.4,12.7352]
[1744379203251,6.3672,1570.6,1570.3,3.0]
[1744379203453,6.4151471,1570.5,1570.3,3.0]
[1744379203606,6.36762,1570.5,1570.3,3.0]
[1744379203806,0.0475271,1570.5,1570.0,7.92026]
[1744379204011,6.36836,1570.3,1570.0,9.36926]
[1744379204308,0.0475271,1570.7,1570.2,3.0]
[1744379204309,6.36768,1570.5,1570.2,3.0]
[1744379204724,12.7817571,1570.6,1570.2,9.36846]
[1744379204913,6.36708,1570.6,1570.2,15.73689]
[1744379205113,16.20364,1570.7,1570.3,6.36816]
[1744379205422,12.73501,1570.5,1570.1,9.36883]
[1744379205627,6.36749,1570.5,1570.1,9.36883]
[1744379206033,6.36793,1570.4,1570.1,9.36883]
[1744379206426,0.0475271,1570.4,1569.9,6.36979]
[1744379206638,6.36852,1570.3,1570.0,6.3694]
[1744379206828,6.36852,1570.3,1570.1,3.0]
[1744379207442,6.36758,1570.5,1570.2,6.3686]
[1744379207647,6.36798,1570.4,1570.1,9.36886]
[1744379207818,6.36824,1570.3,1570.1,3.0]
[1744379208028,6.36749,1570.5,1570.2,6.36856]
[1744379208272,6.4142671,1570.7,1570.1,7.305736]
[1744379208437,6.36808,1570.4,1570.1,3.0]
[1744379208757,6.36746,1570.5,1570.1,15.73784]
[1744379208960,0.0475271,1570.7,1570.4,6.36741]
[1744379209176,7.94337,1570.8,1570.3,6.36804]
[1744379209340,7.94337,1570.8,1570.5,6.36727]
[1744379209927,60.098496,1571.0,1570.7,6.36646]
[1744379209928,9.838,1571.0,1570.7,6.36646]
[1744379210127,7.91382,1571.1,1570.7,12.73287]
[1744379210344,6.36592,1570.9,1570.6,6.43056683]
[1744379210665,14.27884,1571.1,1570.7,6.36634]
[1744379210869,6.36537,1571.0,1570.7,6.36634]
[1744379211224,1.5487,1571.1,1570.8,3.06365791]
[1744379211554,1.50381,1571.4,1570.9,0.34809995]
[1744379211727,1.50381,1571.4,1571.2,6.36454]
[1744379211728,1e-05,1571.4,1571.2,6.36454]
[1744379212124,1e-05,1571.4,1571.3,9.42778646]
[1744379212324,1e-05,1571.4,1571.3,11.69582897]
[1744379212559,1e-05,1571.4,1571.3,13.02472707]
[1744379212873,1e-05,1571.4,1571.3,11.98029246]
[1744379213243,1e-05,1571.4,1571.3,9.71224995]
[1744379213435,1e-05,1571.4,1571.3,10.18204711]
[1744379213634,1e-05,1571.4,1571.3,9.77587638]
[1744379213830,1e-05,1571.4,1571.3,9.71224995]
[1744379214528,1e-05,1571.4,1571.3,0.34809995]
[1744379214971,6.36376,1571.4,1571.3,0.34809995]
[1744379215345,7.64124671,1571.4,1571.3,0.34809995]
[1744379215546,1e-05,1571.4,1571.3,0.34809995]
[1744379215753,1e-05,1571.4,1571.1,6.36478]
[1744379215952,6.3643,1571.3,1571.0,6.3653]
[1744379216151,12.72867,1571.3,1571.0,6.3653]
[1744379216347,1e-05,1571.4,1571.0,6.3653]
[1744379216348,1e-05,1571.4,1571.2,6.36444]
[1744379216576,1e-05,1571.4,1571.2,12.79246542]
[1744379216759,1e-05,1571.4,1571.1,6.71274743]
[1744379216945,1e-05,1571.4,1571.2,6.36452]
[1744379217146,6.36432,1571.3,1571.0,6.3653]
[1744379217363,6.36513,1571.1,1570.7,15.98651]
[1744379217675,6.36538,1571.0,1570.7,6.36651]
[1744379217862,6.36513,1571.1,1570.7,12.73292]
[1744379218034,12.73041,1571.1,1570.7,6.36641]
[1744379218237,6.36552,1571.0,1570.6,7.88952]
[1744379218434,6.3663,1570.8,1570.4,12.73539]
[1744379218649,6.315485,1570.9,1570.5,6.77917328]
[1744379218861,6.3662,1570.8,1570.5,0.41192328]
[1744379219069,6.3662,1570.8,1570.5,0.34825633]
[1744379219269,6.36582,1570.9,1570.5,6.77928329]
[1744379219473,6.36686,1570.7,1570.5,0.34825633]
[1744379219677,12.73373,1570.7,1570.5,0.34825633]
[1744379220075,12.73373,1570.7,1570.3,17.65246]
[1744379220076,12.73363,1570.7,1570.4,0.34825633]
[1744379220288,0.0475271,1570.8,1570.4,3.88848077]
[1744379220436,6.36583,1570.9,1570.6,6.36668]
[1744379220640,12.73098,1571.0,1570.6,6.43033969]
[1744379220876,6.36508,1571.1,1570.8,6.36597]
[1744379221083,8.00176,1571.2,1570.8,6.36597]
[1744379221382,6.36452,1571.3,1571.0,6.36523]
[1744379221548,12.72891,1571.3,1570.9,6.36577]
[1744379221875,6.36458,1571.2,1570.9,6.36562]
[1744379222083,12.7752471,1571.4,1571.0,7.06528626]
[1744379222292,1e-05,1571.4,1571.2,6.36429]
[1744379222440,1e-05,1571.4,1571.1,6.36485]
[1744379222778,1e-05,1571.4,1571.1,12.72969]
[1744379222978,6.36377,1571.4,1571.1,6.36484]
[1744379223188,1e-05,1571.4,1571.1,12.72966]
[1744379223490,1e-05,1571.4,1571.2,12.72876]
[1744379223686,1e-05,1571.4,1571.3,15.35276001]
[1744379223842,1e-05,1571.4,1571.3,26.88713688]
[1744379224045,6.36017,1572.3,1571.6,13.69419052]
[1744379224238,0.05,1572.4,1572.1,6.36091]
[1744379224480,0.05,1572.4,1572.3,6.3601]
[1744379224679,0.05,1572.4,1572.3,6.82629249]
[1744379224882,0.05,1572.4,1572.3,8.35759249]
[1744379225286,6.14121059,1572.7,1572.6,9.35889]
[1744379225489,6.14121059,1572.7,1572.5,6.35912]
[1744379225640,6.14121059,1572.7,1572.5,8.592667]
[1744379225843,6.14121059,1572.7,1572.6,6.35889]
[1744379227648,0.3955379,1572.9,1572.8,6.35808]
[1744379227857,0.3955379,1572.9,1572.8,6.42165067]
[1744379228062,0.3955379,1572.9,1572.8,6.35808]
[1744379228588,0.3955379,1572.9,1572.8,12.84158881]
[1744379228792,0.05,1573.4,1573.2,6.35628]
[1744379228961,0.05,1573.4,1573.3,6.35606]
[1744379229164,0.05,1573.4,1573.3,9.35606]
[1744379229374,0.05,1573.4,1573.3,6.35606]
[1744379229576,0.05,1573.4,1573.0,6.35711]
[1744379229771,8.570511,1573.4,1572.7,6.35829]
[1744379230081,6.3575,1573.0,1572.6,6.35872]
[1744379230279,6.4044671,1573.1,1572.7,6.35817]
[1744379230454,6.3573,1573.0,1572.7,6.35844]
[1744379230654,6.35825,1572.8,1572.4,6.35957]
[1744379230854,0.0475271,1573.1,1572.5,6.3593]
[1744379231086,6.35719,1573.1,1572.6,6.35884]
[1744379231310,0.0475271,1573.0,1572.4,11.955117]
[1744379231467,0.0475271,1573.0,1572.6,12.7173]
[1744379231468,6.35735,1573.0,1572.6,12.7173]
[1744379231672,8.0120771,1572.9,1572.5,6.35925]
[1744379231878,1.6068,1572.9,1572.6,0.06358509]
[1744379232193,1.6068,1572.9,1572.5,6.35913]
[1744379232194,7.96465,1572.9,1572.5,6.35913]
[1744379232387,7.96465,1572.9,1572.6,6.35875]
[1744379232566,6.35729,1573.0,1572.6,6.35875]
[1744379232766,6.4054271,1572.9,1572.5,6.35926]
[1744379232965,7.96454,1572.7,1572.4,0.47851146]
[1744379233205,1.6059,1572.7,1572.4,12.71918]
[1744379233501,0.635729,1573.0,1572.5,6.3593]
[1744379233502,1.6059,1573.0,1572.5,6.3593]
[1744379233703,0.0475271,1572.9,1572.4,9.35968]
[1744379233858,1.6059,1573.0,1572.5,10.69058052]
[1744379234060,1.6264,1573.3,1572.9,6.35768]
[1744379234318,6.4042371,1573.2,1572.8,6.35791]
[1744379234516,0.05,1573.4,1573.2,6.35626]
[1744379234720,0.05,1573.4,1573.3,6.35606]
[1744379234882,0.05,1573.4,1573.1,6.35673]
[1744379235078,6.4534271,1573.4,1573.0,6.35714]
[1744379235278,6.4532371,1573.4,1572.8,4.33128052]
[1744379235478,6.4532371,1573.4,1573.2,6.35624]
[1744379235479,0.05,1573.4,1573.2,6.35624]
[1744379235792,6.4533271,1573.4,1573.0,6.357]
[1744379235995,0.05,1573.4,1573.1,6.35658]
[1744379236193,0.05,1573.4,1573.0,6.35727]
[1744379236495,6.40597,1573.4,1573.1,6.35673]
[1744379236694,6.40597,1573.4,1572.6,9.35875]
[1744379236695,7.9215871,1573.3,1572.6,6.35883]
[1744379236889,6.35747,1573.0,1572.6,6.35869]
[1744379237216,1.5179,1572.8,1572.4,6.45244548]
[1744379237423,6.4060171,1572.7,1572.0,6.36131]
[1744379237588,6.36064,1572.2,1571.8,7.94438]
[1744379237788,7.9558271,1572.1,1571.4,4.33128052]
[1744379238056,15.96796,1572.6,1571.6,6.36294]
[1744379238057,1.547,1572.4,1571.6,6.36294]
[1744379238209,1.547,1572.7,1572.2,6.36021]
[1744379238532,6.35667,1573.2,1572.8,6.35791]
[1744379238533,1.6553271,1573.1,1572.8,6.35791]
[1744379238815,1.6553271,1573.1,1572.8,12.71581]
[1744379238988,1.6078,1573.1,1572.9,6.35751]
[1744379239191,8.0105471,1573.3,1572.9,6.35736]
[1744379239424,8.0105471,1573.3,1572.8,6.35791]
[1744379239425,0.0475271,1573.2,1572.8,6.35791]
[1744379239587,0.0475271,1573.2,1572.8,6.35779]
[1744379239780,1.6068,1573.3,1572.9,6.35768]
[1744379239996,7.96318,1573.3,1572.9,6.83897872]
[1744379240192,6.4040071,1573.2,1572.9,6.35768]
[1744379240394,1.6068,1573.3,1573.1,6.35672]
[1744379240717,6.3571,1573.1,1572.4,8.02248]
[1744379240885,6.4049771,1573.0,1572.6,6.35871]
[1744379241087,6.4048571,1573.0,1572.6,6.35859]
[1744379241282,6.35889,1572.6,1572.2,6.36047]
[1744379241514,1.6317,1572.4,1571.9,6.36172]
[1744379241722,7.99024,1572.7,1572.3,6.3601]
[1744379242019,6.4065971,1572.6,1572.2,12.72075]
[1744379242223,6.4065971,1572.6,1572.2,6.36033]
[1744379242429,6.35907,1572.6,1572.3,6.35993]
[1744379242717,6.3589,1572.6,1572.3,6.35993]
[1744379242917,1.6792271,1572.7,1572.5,6.35911]
[1744379243128,0.0475271,1572.8,1572.7,6.35849]
[1744379243292,1.5934,1573.1,1572.9,6.35749]
[1744379243481,6.35624,1573.3,1572.9,6.35749]
[1744379243482,6.35641,1573.3,1572.9,6.35764]
[1744379243688,6.35647,1573.2,1572.9,12.71518]
[1744379243927,0.0475271,1573.1,1572.6,6.35872]
[1744379244080,0.0475271,1573.1,1572.3,12.71994]
[1744379244081,6.35869,1572.7,1572.3,12.71994]
[1744379244294,6.35904,1572.6,1572.3,6.3599]
[1744379244585,1.6474,1573.0,1572.8,6.35786]
[1744379244820,1.6608271,1573.2,1572.6,6.35874]
[1744379245024,1.6608271,1573.2,1572.8,6.35799]
[1744379245025,6.35696,1573.1,1572.8,6.35799]
[1744379245317,0.0475271,1573.0,1572.5,3.47300046]
[1744379245522,6.35717,1573.1,1572.6,13.06496005]
[1744379245823,6.35732,1573.0,1572.6,0.34730005]
[1744379246033,0.0475271,1572.9,1572.0,4.33128052]
[1744379246209,6.35851,1572.7,1572.2,6.36044]
[1744379246527,12.71734,1572.7,1572.2,12.72081]
[1744379246685,1.5783,1572.8,1572.3,0.06358968]
[1744379247029,7.93651,1572.8,1572.4,6.35966]
[1744379247188,7.95209,1573.1,1572.6,6.3585]
[1744379247522,6.35736,1573.0,1572.6,6.3585]
[1744379247723,6.35736,1573.0,1572.7,6.42204589]
[1744379248020,0.0475271,1572.9,1572.3,0.64237697]
[1744379248182,0.0475271,1572.9,1571.9,13.98228052]
[1744379248382,6.4047971,1573.0,1572.3,6.35973]
[1744379248583,6.35772,1572.9,1572.5,6.35902]
[1744379248780,6.35948,1572.5,1572.2,0.34531017]
[1744379248983,6.35898,1572.6,1572.1,2.10752507]
[1744379249179,6.35898,1572.6,1572.2,6.36023]
[1744379249385,6.35889,1572.6,1572.1,2.10752507]
[1744379249584,0.0475271,1572.5,1571.6,5.98488052]
[1744379249821,6.36017,1572.3,1571.6,5.98488052]
[1744379250028,6.36026,1572.3,1571.6,6.98408873]
[1744379250224,6.36071,1572.2,1571.8,6.36185]
[1744379250400,12.72049,1572.3,1571.9,6.42524955]
[1744379250596,1.6236,1572.6,1571.9,6.42522955]
[1744379250597,6.35971,1572.4,1571.9,6.42522955]
[1744379250799,6.36067,1572.2,1571.8,7.46814574]
[1744379251013,0.0475271,1572.4,1571.9,0.06360806]
[1744379251324,1.5718,1572.2,1571.6,5.98488052]
[1744379251525,1.5718,1572.2,1571.9,6.36152]
[1744379251736,6.36063,1572.2,1571.8,6.36176]
[1744379252026,6.36006,1572.4,1572.0,6.36104]
[1744379252222,6.36006,1572.4,1571.7,3.59848805]
[1744379252223,6.35998,1572.4,1572.1,6.36076]
[1744379252429,6.35852,1572.7,1572.3,6.35998]
[1744379252612,6.35852,1572.7,1572.3,12.71994]
[1744379252812,6.35729,1573.0,1572.7,6.35835]
[1744379253013,6.35729,1573.0,1572.3,1.271994]
[1744379253014,6.35768,1572.9,1572.4,6.35935]
[1744379253221,12.71563,1572.9,1572.5,12.71832]
[1744379253426,6.35768,1572.9,1572.6,12.71763]
[1744379253607,6.35768,1572.9,1572.6,6.35876]
[1744379253608,6.35792,1572.9,1572.6,6.35876]
[1744379253930,6.35778,1572.9,1572.4,0.48479195]
[1744379254133,6.35824,1572.8,1572.5,6.35918]
[1744379254350,6.35859,1572.7,1572.4,12.71918]
[1744379254635,12.71664,1572.8,1572.4,14.1183174]
[1744379254938,12.71664,1572.8,1572.5,6.70695852]
[1744379255103,0.0475271,1573.0,1572.5,6.70695852]
[1744379255104,12.71562,1572.9,1572.5,6.77054205]
[1744379255302,6.35838,1572.8,1572.5,0.34766852]
[1744379255503,0.0475271,1573.0,1572.6,1.5315]
[1744379255798,6.4040071,1573.2,1572.6,0.48791685]
[1744379256003,6.4040071,1573.2,1572.5,6.70688852]
[1744379256004,6.35825,1572.8,1572.5,6.70688852]
[1744379256247,12.71577,1572.9,1572.5,6.70682852]
[1744379256443,6.35866,1572.7,1572.3,10.89154]
[1744379256645,6.35866,1572.7,1572.4,6.35967]
[1744379256945,1.6018,1573.0,1572.5,6.42286763]
[1744379257102,6.35656,1573.2,1572.8,6.35787]
[1744379257103,12.71327,1573.2,1572.8,6.35787]
[1744379257304,0.0475271,1573.2,1572.6,7.00100676]
[1744379257517,6.35799,1572.9,1572.5,6.3593]
[1744379257705,6.35799,1572.9,1572.6,6.35883]
[1744379257706,12.71588,1572.9,1572.6,6.35883]
[1744379257904,6.35813,1572.8,1572.5,6.3593]
[1744379258247,0.0475271,1573.0,1572.3,3.48000037]
[1744379258545,1.6643,1572.5,1571.8,7.86887]
[1744379258766,6.4074471,1572.4,1571.6,9.36294]
[1744379258932,8.02221,1572.9,1572.2,7.92321]
[1744379259138,8.02221,1572.9,1572.6,6.35857]
[1744379259139,1.6643,1572.9,1572.6,6.35857]
[1744379259437,1.6643,1572.9,1572.1,6.36052]
[1744379259438,6.35947,1572.5,1572.1,6.36052]
[1744379259754,6.35971,1572.4,1572.2,0.34777573]
[1744379259907,6.3601,1572.3,1572.2,0.34777573]
[1744379260652,6.36092,1572.1,1571.8,13.07178573]
[1744379260964,8.01594,1572.4,1571.8,0.34777573]
[1744379261160,6.36172,1571.9,1571.8,0.34777573]
[1744379261447,6.36213,1571.8,1571.7,0.34777573]
[1744379262144,6.36295,1571.6,1571.3,0.34777573]
[1744379262334,6.36348,1571.5,1571.3,0.34777573]
[1744379262540,8.00738,1571.5,1571.3,0.34777573]
[1744379262739,1.6439,1571.5,1571.3,0.34777573]
[1744379262939,1.6914271,1571.5,1571.3,0.34777573]
[1744379263107,1.5563,1571.7,1571.4,6.36335]
[1744379263313,7.91779,1572.0,1571.6,6.36294]
[1744379263632,1.5563,1572.0,1571.6,6.36276]
[1744379263837,14.27952,1572.0,1571.6,6.36276]
[1744379264006,14.27952,1572.0,1571.3,9.36403]
[1744379264007,1.5563,1572.0,1571.3,3.0]
[1744379264209,1.6038271,1572.0,1571.7,6.36228]
[1744379264452,1.6038271,1572.0,1571.4,8.0021]
[1744379264608,1.6353,1572.3,1572.1,6.36078]
[1744379264808,1.6353,1572.3,1572.0,6.36125]
[1744379265009,0.0475271,1572.2,1572.0,6.36107]
[1744379265249,1.6353,1572.3,1572.1,6.36075]
[1744379265457,1.6353,1572.3,1572.0,6.36113]
[1744379265760,0.0475271,1572.2,1571.5,0.80021]
[1744379265937,1.6353,1572.3,1571.6,9.42655723]
[1744379266140,8.0430471,1572.3,1571.9,12.72296]
[1744379266537,1.6828271,1572.3,1572.0,6.36129]
[1744379266741,1.6828271,1572.3,1572.0,6.36117]
[1744379267057,1.6828271,1572.3,1572.0,6.3612]
[1744379267359,1.6828271,1572.3,1572.1,6.36082]
[1744379267558,0.0475271,1572.5,1572.3,6.35998]
[1744379267858,55.93961,1573.0,1572.4,6.3597]
[1744379267859,1.5606271,1572.9,1572.4,6.3597]
[1744379268062,11.1671,1573.2,1572.7,6.35834]
[1744379268216,7.5211871,1573.1,1572.6,12.71758]
[1744379268560,7.5211871,1573.1,1572.3,4.519]
[1744379268561,1.1642371,1573.1,1572.4,0.4724094]
[1744379268740,7.5211971,1573.1,1572.5,0.06358653]
[1744379268956,6.35744,1573.0,1572.6,6.35875]
[1744379269258,1.5131,1573.2,1572.7,6.42207412]
[1744379269471,1.5131,1573.2,1572.6,6.3588]
[1744379269472,6.35758,1573.0,1572.6,6.3588]
[1744379269613,6.4053671,1572.9,1572.6,6.3588]
[1744379269816,6.4053671,1572.9,1572.5,12.71844]
[1744379270044,0.0475271,1572.9,1572.4,6.35963]
[1744379270227,1.5668,1572.8,1572.4,6.3597]
[1744379270433,6.35799,1572.9,1572.4,8.112903]
[1744379270662,0.0475271,1572.9,1572.5,0.06358947]
[1744379270959,1.5668,1573.0,1572.7,6.35823]
[1744379271144,1.5668,1573.0,1572.7,12.71654]
[1744379271523,0.0475271,1572.9,1572.6,6.35874]
[1744379271829,7.92416,1573.0,1572.7,6.35832]
[1744379272156,1.6143271,1573.0,1572.7,6.35832]
[1744379272361,9.40453481,1573.0,1572.6,6.35879]
[1744379272576,9.40453481,1573.0,1572.6,6.35877]
[1744379272869,12.71589,1572.9,1572.5,12.71834]
[1744379273014,6.35854,1572.7,1572.3,6.35993]
[1744379273219,6.4057071,1572.8,1572.5,6.35924]
[1744379273414,6.4057671,1572.8,1572.5,6.35924]
[1744379273651,0.05,1573.4,1572.9,6.35746]
[1744379273869,6.35675,1573.2,1572.8,6.35796]
[1744379274032,6.4045271,1573.1,1572.8,6.35793]
[1744379274220,1.5404,1573.0,1572.8,6.35793]
[1744379274414,1.5404,1573.0,1572.7,6.35832]
[1744379274634,6.35659,1573.2,1572.8,6.35788]
[1744379274831,0.0475271,1573.1,1572.7,6.35849]
[1744379275064,14.3082571,1573.3,1572.9,6.35748]
[1744379275243,6.4040071,1573.2,1572.9,6.35748]
[1744379275443,0.0475271,1573.2,1572.9,6.35748]
[1744379275658,1.5481,1573.3,1572.9,6.35768]
[1744379275838,1.5481,1573.3,1572.9,6.42118528]
[1744379276034,1.5481,1573.3,1572.9,6.35762]
[1744379276035,0.0475271,1573.2,1572.9,6.35762]
[1744379276777,9.723,1573.4,1572.9,6.35762]
[1744379276778,0.05,1573.4,1573.1,6.35687]
[1744379276946,0.05,1573.4,1573.2,6.35633]
[1744379277137,0.05,1573.4,1573.0,6.35727]
[1744379277343,0.05,1573.4,1573.2,6.3561]
[1744379277775,1.511,1573.3,1572.5,1.5151]
[1744379277989,1.5463,1572.8,1572.5,6.35919]
[1744379278281,1.5463,1572.8,1572.0,2.18422]
[1744379278282,1.5938271,1572.8,1572.0,2.18422]
[1744379278577,6.35905,1572.6,1572.2,6.36035]
[1744379278777,1.5463,1572.8,1572.3,6.3601]
[1744379278947,0.0475271,1572.9,1572.4,0.06358335]
[1744379279152,0.0475271,1573.0,1572.7,12.71668]
[1744379279460,8.00945,1573.1,1572.7,0.06358175]
[1744379279461,1.6999271,1573.1,1572.7,0.06358175]
[1744379279645,14.31089,1573.3,1572.9,6.35747]
[1744379279841,0.0475271,1573.2,1572.9,12.71501]
[1744379280047,6.35768,1572.9,1572.5,12.71843]
[1744379280270,6.4040871,1573.2,1572.6,6.4224458]
[1744379280437,6.4040871,1573.2,1572.9,6.35754]
[1744379280773,0.0475271,1573.2,1572.5,6.35928]
[1744379280983,1.5317,1573.0,1572.5,6.35913]
[1744379281153,0.0475271,1572.9,1572.8,6.35808]
[1744379281355,1.5639,1573.3,1573.0,6.35706]
[1744379281549,1.6114271,1573.3,1572.8,6.35794]
[1744379281866,1.5955,1572.8,1572.4,6.35959]
[1744379282070,1.6430271,1573.1,1572.9,6.35764]
[1744379282374,0.05,1573.4,1573.3,6.35606]
[1744379282575,0.05,1573.4,1573.2,12.71258]
[1744379282877,0.05,1573.4,1573.3,6.35606]
[1744379283078,0.05,1573.4,1573.2,6.35627]
[1744379283289,0.05,1573.4,1572.9,6.35754]
[1744379283476,12.71288,1573.3,1573.0,6.35725]
[1744379283681,0.0475271,1573.2,1573.0,6.35714]
[1744379283882,1.5597,1573.3,1573.1,6.35687]
[1744379284082,1.5597,1573.3,1573.0,6.35714]
[1744379284422,1.5597,1573.3,1573.1,6.35668]
[1744379284697,0.0975271,1573.4,1573.1,12.71343]
[1744379284902,0.05,1573.4,1573.3,6.35606]
[1744379285556,6.35676,1573.2,1572.8,6.35797]
[1744379285756,6.35676,1573.2,1572.5,7.97546]
[1744379285757,6.35722,1573.1,1572.7,6.35839]
[1744379285993,6.35709,1573.1,1572.6,0.06357876]
[1744379286206,6.35797,1572.9,1572.2,2.259135]
[1744379286495,0.64047471,1573.1,1572.7,6.35849]
[1744379286496,0.0475271,1573.1,1572.7,6.35849]
[1744379286663,6.35694,1573.1,1572.4,6.35936]
[1744379286863,0.0475271,1573.0,1572.8,6.35793]
[1744379287087,14.24856,1573.3,1572.9,6.35736]
[1744379287259,0.05,1573.4,1573.3,6.35606]
[1744379287458,0.05,1573.4,1573.1,6.35678]
[1744379287697,6.4534371,1573.4,1573.1,6.35678]
[1744379287995,6.4534371,1573.4,1572.7,8.02229]